fUSD/lending_fUSD_20250630
["ID","MTS","AMOUNT","RATE_DAILY","PERIOD"]
[368635642,1751256631859,-300.32334,0.00015498,2]
[368635643,1751256631868,-17837.4806567,0.00015509,2]
[368635644,1751256631877,-200.0,0.00015513,2]
[368635645,1751256631887,-2230.31,0.0001552,2]
[368635646,1751256631896,-200.96,0.00015529,2]
[368635647,1751256631905,-593.15,0.00015546,2]
[368635648,1751256631915,-518.0,0.00015547,2]
[368635649,1751256631924,-1455.86,0.00015555,2]
[368635650,1751256631934,-200.0,0.0001578,7]
[368635651,1751256631943,-150.0,0.00015781,2]
[368635652,1751256631956,-1000.0,0.00015807,2]
[368635653,1751256631966,-168.06,0.00015976,2]
[368635654,1751256631976,-251.07,0.00016302,2]
[368635655,1751256631986,-251.07,0.00016307,2]
[368635656,1751256631995,-254.11,0.00016308,2]
[368635657,1751256632004,-251.07,0.00016311,2]
[368635658,1751256632013,-251.07,0.00016315,2]
[368635659,1751256632025,-251.07,0.0001632,2]
[368635660,1751256632036,-251.07,0.00016324,2]
[368635661,1751256632045,-251.07,0.00016328,2]
[368635662,1751256632055,-200.0,0.00016332,2]
[368635663,1751256632064,-251.07,0.00016333,2]
[368635664,1751256632074,-251.07,0.00016337,2]
[368635665,1751256632083,-251.07,0.00016341,2]
[368635666,1751256632092,-1404.45,0.00016344,2]
[368635667,1751256632101,-251.07,0.00016346,2]
[368635668,1751256632111,-251.07,0.0001635,2]
[368635669,1751256632121,-251.07,0.00016354,2]
[368635670,1751256632130,-251.07,0.00016358,2]
[368635671,1751256632140,-251.07,0.00016363,2]
[368635672,1751256632149,-251.07,0.00016367,2]
[368635673,1751256632159,-251.07,0.00016371,2]
[368635674,1751256632168,-251.07,0.00016376,2]
[368635675,1751256632178,-251.07,0.0001638,2]
[368635676,1751256632188,-251.07,0.00016384,2]
[368635677,1751256632198,-167.33,0.00016497,2]
[368635678,1751256632208,-300.0,0.000165,2]
[368635680,1751256632218,-300.0,0.000165,2]
[368635682,1751256632227,-509.0,0.00016525,2]
[368635684,1751256632236,-200.0,0.000166,6]
[368635686,1751256632245,-1167.47,0.00016678,2]
[368635688,1751256632254,-500.0,0.000167,6]
[368635690,1751256632263,-800.0,0.000168,6]
[368635692,1751256632272,-1100.0,0.000169,6]
[368635694,1751256632281,-500.0,0.000169,2]
[368635696,1751256632290,-2680.52963005,0.000169,2]
[368635698,1751256632302,-2434.30027191,0.000169,2]
[368635704,1751256632350,-990.28470023,0.000169,2]
[368635706,1751256632380,-574.42573208,0.000169,2]
[368635708,1751256632391,-799.24060369,0.000169,2]
[368635709,1751256632403,-673.93286093,0.000169,2]
[368635710,1751256632415,-2911.73821749,0.000169,2]
[368635711,1751256637771,-25154.62508362,0.000169,2]
[368635712,1751256637781,-1000.0,0.000169,2]
[368635713,1751256637789,-1500.0,0.000169,2]
[368635714,1751256637798,-296.47766215,0.00016906,2]
[368635715,1751256637810,-104.84489098,0.00016906,2]
[368635716,1751256637819,-556.83687328,0.00016906,2]
[368635717,1751256637827,-85.80251808,0.00016937,2]
[368635718,1751256637876,-914.19748192,0.00016937,2]
[368635719,1751256637886,-1017.5172817,0.00016937,2]
[368635720,1751256637895,-207.4,0.00016937,2]
[368635721,1751256637904,-500.0,0.00016937,2]
[368635722,1751256637913,-500.0,0.00016937,2]
[368635723,1751256637922,-43.17911263,0.00016937,2]
[368635929,1751256640078,-456.82088737,0.00016937,2]
[368635931,1751256640087,-500.0,0.00016937,2]
[368635933,1751256640097,-500.0,0.00016937,2]
[368635935,1751256640106,-500.0,0.00016937,2]
[368635937,1751256640115,-500.0,0.00016937,2]
[368635939,1751256640125,-500.0,0.00016937,2]
[368635941,1751256640134,-500.0,0.00016937,2]
[368635943,1751256640144,-500.0,0.00016937,2]
[368635945,1751256640153,-500.0,0.00016937,2]
[368635947,1751256640162,-151.0,0.00016937,2]
[368635949,1751256640172,-300.0,0.00016937,2]
[368635951,1751256640181,-286.39172988,0.00016937,2]
[368635953,1751256640191,-231.0,0.00016957,2]
[368635955,1751256640200,-13114.98,0.00016992,2]
[368635957,1751256640209,-13114.94,0.00016993,2]
[368635959,1751256640219,-870.92329027,0.00016993,2]
[368635961,1751256640227,-556.83687328,0.00016995,2]
[368635962,1751256640237,-401.32255311,0.00016995,2]
[368635964,1751256640247,-26229.88,0.00016997,2]
[368635966,1751256640256,-637.9,0.00016999,2]
[368635968,1751256640268,-490.0,0.00016999,2]
[368635970,1751256640277,-1035.97,0.00016999,2]
[368635972,1751256640287,-490.0,0.00016999,2]
[368635974,1751256640297,-490.0,0.00016999,2]
[368635976,1751256640306,-490.0,0.00016999,2]
[368635978,1751256640318,-300.0,0.00016999,2]
[368635981,1751256640329,-490.0,0.00016999,2]
[368635982,1751256640339,-984.57,0.00016999,2]
[368635984,1751256640348,-490.0,0.00016999,2]
[368635986,1751256640358,-1011.18705208,0.00016999,2]
[368635989,1751256640372,-1465.82294792,0.00016999,2]
[368635991,1751256640383,-865.13,0.00016999,2]
[368635992,1751256640392,-490.0,0.00016999,2]
[368635994,1751256640402,-1304.28,0.00016999,2]
[368635997,1751256640411,-2250.46,0.00016999,2]
[368635998,1751256640424,-1545.34,0.00016999,2]
[368636000,1751256640433,-1213.04,0.00016999,2]
[368636002,1751256640442,-2254.99,0.00016999,2]
[368636004,1751256640452,-608.84,0.00016999,2]
[368636006,1751256640461,-1785.88,0.00016999,2]
[368636008,1751256640471,-490.0,0.00016999,2]
[368636010,1751256640481,-490.0,0.00016999,2]
[368636012,1751256640490,-2150.82,0.00016999,2]
[368636014,1751256640499,-2602.67,0.00016999,2]
[368636016,1751256640509,-604.26,0.00016999,2]
[368636018,1751256640518,-1825.8,0.00016999,2]
[368636020,1751256640527,-2765.99,0.00016999,2]
[368636022,1751256640536,-2009.46,0.00016999,2]
[368636024,1751256640545,-8964.08,0.00016999,2]
[368636026,1751256640555,-490.0,0.00016999,2]
[368636028,1751256640564,-795.6,0.00016999,2]
[368636030,1751256640573,-2336.36,0.00016999,2]
[368636032,1751256640584,-490.0,0.00016999,2]
[368636034,1751256640593,-903.46,0.00016999,2]
[368636036,1751256640603,-1980.94,0.00016999,2]
[368636038,1751256640613,-490.0,0.00016999,2]
[368636040,1751256640623,-654.78,0.00016999,2]
[368636042,1751256640633,-4829.23,0.00016999,2]
[368636044,1751256640642,-12050.94,0.00016999,2]
[368636046,1751256640651,-490.92212399,0.00016999,2]
[368636048,1751256640660,-789.6,0.00016999,2]
[368636050,1751256640670,-490.0,0.00016999,2]
[368636052,1751256640679,-2195.96,0.00016999,2]
[368636054,1751256640688,-490.0,0.00016999,2]
[368636056,1751256640698,-7275.26,0.00016999,2]
[368636058,1751256640708,-1423.36,0.00016999,2]
[368636060,1751256640718,-500.0,0.00016999,2]
[368636062,1751256640727,-500.0,0.00016999,2]
[368636064,1751256640736,-218.67929271,0.00016999,2]
[368636068,1751256640767,-281.32070729,0.00016999,2]
[368636070,1751256640777,-500.0,0.00016999,2]
[368636072,1751256640786,-500.0,0.00016999,2]
[368636074,1751256640795,-500.0,0.00016999,2]
[368636076,1751256640804,-500.0,0.00016999,2]
[368636078,1751256640813,-500.0,0.00016999,2]
[368636080,1751256640823,-500.0,0.00016999,2]
[368636082,1751256640833,-500.0,0.00016999,2]
[368636084,1751256640842,-155.31065377,0.00016999,2]
[368636086,1751256640852,-405.12637004,0.00016999,2]
[368636088,1751256640861,-300.0,0.00017,2]
[368636090,1751256640870,-3758.37793628,0.00017,2]
[368636095,1751256640906,-714.53427313,0.00017,2]
[368636098,1751256640920,-6345.44750431,0.00017,2]
[368636298,1751256642971,-3691.78848513,0.00017,2]
[368636300,1751256642982,-500.0,0.00017,2]
[368636640,1751256646076,-959.08,0.00016999,2]
[368636642,1751256646085,-490.0,0.00016999,2]
[368636644,1751256646094,-889.03379006,0.00017,2]
[368636646,1751256646106,-1948.03667603,0.00017,2]
[368636651,1751256646144,-4069.1778689,0.00017,2]
[368636656,1751256646181,-8781.8511882,0.00017,2]
[368636660,1751256646206,-459.58986104,0.00017,2]
[368636824,1751257532408,62.46969484,0.00013699,2]
[368636825,1751257532438,237.89030516,0.00013699,2]
[368636837,1751257682049,38129.53868241,0.00014,2]
[368636856,1751257832023,-250.0,0.00015,2]
[368636858,1751257832032,-167.33,0.00015387,2]
[368636860,1751257832042,-243.68351253,0.00015399,2]
[368636865,1751257832081,-956.31648747,0.00015399,2]
[368636867,1751257832090,-300.0,0.00015399,2]
[368636868,1751257832099,-23900.0,0.000154,2]
[368636869,1751257832108,-169.86,0.00015433,2]
[368636870,1751257832118,-296.57,0.00015503,2]
[368636871,1751257832127,-249.11896581,0.00015657,2]
[368636872,1751257832136,-300.0,0.00015673,2]
[368636873,1751257832146,-250.0,0.00015719,2]
[368636874,1751257832156,-1000.0,0.00015728,2]
[368636875,1751257832165,-342.76,0.00015757,2]
[368636876,1751257832174,-2959.45491289,0.00015811,2]
[368636877,1751257832184,-663.0,0.00015819,2]
[368636878,1751257832194,-300.0,0.00015819,2]
[368636879,1751257832203,-37351.01,0.0001582,2]
[368636880,1751257832213,-150.0,0.00015882,2]
[368636881,1751257832223,-2913.45,0.00015902,2]
[368636882,1751257832232,-466.96736535,0.0001593,2]
[368636883,1751257832241,-169.08,0.00015952,2]
[368636884,1751257832250,-169.08,0.00015992,2]
[368636885,1751257832260,-40219.6780599,0.00016,2]
[368636886,1751257832271,-77885.23489615,0.00016,2]
[368636887,1751257832280,-503.0,0.00016,2]
[368636888,1751257832289,-313.22,0.0001603,2]
[368636889,1751257832299,-169.08,0.00016032,2]
[368636890,1751257832309,-466.96736534,0.00016099,2]
[368636891,1751257832319,-217.1,0.00016247,2]
[368636892,1751257832328,-466.96736534,0.00016267,2]
[368636893,1751257832338,-935.04,0.00016278,2]
[368636894,1751257832347,-150.0,0.00016278,2]
[368636895,1751257832356,-193.19920666,0.00016433,2]
[368636896,1751257832365,-466.96736534,0.00016436,2]
[368636897,1751257832375,-640.0,0.00016571,2]
[368636898,1751257832384,-168.0,0.00016578,2]
[368636899,1751257832393,-514.0,0.00016588,2]
[368636900,1751257832402,-204.00003,0.00016588,2]
[368636901,1751257832412,-5620.74,0.00016599,2]
[368636903,1751257832421,-466.96736534,0.00016604,2]
[368636905,1751257832431,-168.0,0.00016623,2]
[368636907,1751257832440,-5620.68,0.00016695,2]
[368636909,1751257832449,-926.95478974,0.00016699,2]
[368636918,1751257832527,-4693.72521026,0.00016699,2]
[368636919,1751257832536,-1305.70376822,0.000167,2]
[368636920,1751257832549,-4314.97623178,0.000167,2]
[368636921,1751257832559,-4953.12357553,0.0001671,2]
[368636922,1751257832570,-667.55642447,0.0001671,2]
[368636923,1751257832579,-168.0,0.00016755,2]
[368636924,1751257832589,-466.96736534,0.00016773,2]
[368636925,1751257832598,-1353.32138325,0.00016773,2]
[368636926,1751257832610,-2308.57301675,0.00016773,2]
[368636927,1751257832620,-445.46949866,0.00016798,2]
[368636928,1751257832630,-640.0,0.00016798,2]
[368636929,1751257832639,-1854.7878,0.00016799,2]
[368636930,1751257832649,-1000.0,0.00016799,2]
[368636931,1751257832659,-2500.0,0.00016799,2]
[368636932,1751257832668,-4065.37,0.000168,2]
[368636933,1751257832677,-1000.0,0.000168,2]
[368636934,1751257832686,-1000.0,0.000168,2]
[368636935,1751257832695,-694.95820027,0.000168,2]
[368637255,1751257838618,-374.64426197,0.00016799,2]
[368637700,1751257843103,-359.38573803,0.00016799,2]
[368637701,1751257843113,-305.04179973,0.000168,2]
[368637702,1751257843123,-1000.0,0.000168,2]
[368637704,1751257843133,-1000.0,0.000168,2]
[368637706,1751257843142,-311.37308997,0.000168,2]
[368637719,1751257843263,-371.260055,0.000168,2]
[368638018,1751257846183,-359.36685503,0.000168,2]
[368638020,1751257846193,-1000.0,0.000168,2]
[368638022,1751257846202,-1000.0,0.000168,2]
[368638024,1751257846212,-1000.0,0.000168,2]
[368638026,1751257846221,-168.0,0.00016816,2]
[368638028,1751257846231,-714.77,0.00016829,2]
[368638030,1751257846241,-490.0,0.00016829,2]
[368638032,1751257846250,-492.24,0.00016829,2]
[368638034,1751257846259,-490.0,0.00016829,2]
[368638036,1751257846269,-530.4,0.00016829,2]
[368638038,1751257846278,-943.55,0.00016829,2]
[368638040,1751257846287,-2373.8,0.00016829,2]
[368638042,1751257846296,-490.0,0.00016829,2]
[368638044,1751257846305,-490.0,0.00016829,2]
[368638046,1751257846315,-829.09,0.00016829,2]
[368638048,1751257846324,-1249.94,0.00016829,2]
[368638050,1751257846333,-490.0,0.00016829,2]
[368638052,1751257846342,-2156.69,0.00016829,2]
[368638054,1751257846351,-4660.63,0.00016829,2]
[368638056,1751257846360,-490.0,0.00016829,2]
[368638058,1751257846369,-1480.95,0.00016829,2]
[368638060,1751257846378,-2161.03,0.00016829,2]
[368638062,1751257846387,-490.0,0.00016829,2]
[368638064,1751257846396,-1711.46,0.00016829,2]
[368638066,1751257846406,-490.0,0.00016829,2]
[368638068,1751257846415,-583.47,0.00016829,2]
[368638070,1751257846423,-2076.25,0.00016829,2]
[368638072,1751257846432,-490.0,0.00016829,2]
[368638074,1751257846442,-490.0,0.00016829,2]
[368638076,1751257846451,-1749.73,0.00016829,2]
[368638078,1751257846460,-490.0,0.00016829,2]
[368638080,1751257846469,-2061.2,0.00016829,2]
[368638082,1751257846479,-8590.58,0.00016829,2]
[368638084,1751257846488,-490.0,0.00016829,2]
[368638086,1751257846497,-490.0,0.00016829,2]
[368638088,1751257846507,-2494.22,0.00016829,2]
[368638090,1751257846516,-490.0,0.00016829,2]
[368638092,1751257846525,-2239.01,0.00016829,2]
[368638094,1751257846534,-1032.35,0.00016829,2]
[368638096,1751257846544,-1925.73,0.00016829,2]
[368638098,1751257846553,-515.9,0.00016829,2]
[368638100,1751257846562,-490.0,0.00016829,2]
[368638102,1751257846571,-1898.4,0.00016829,2]
[368638104,1751257846581,-643.13,0.00016829,2]
[368638106,1751257846590,-490.0,0.00016829,2]
[368638108,1751257846599,-762.45,0.00016829,2]
[368638109,1751257846608,-2124.88,0.00016829,2]
[368638111,1751257846623,-7535.51380431,0.00016829,2]
[368638114,1751257846635,-4013.30619569,0.00016829,2]
[368638116,1751257846644,-780.44,0.00016829,2]
[368638118,1751257846652,-756.7,0.00016829,2]
[368638119,1751257846662,-490.0,0.00016829,2]
[368638121,1751257846672,-159.55380431,0.00016829,2]
[368638125,1751257846703,-542.36619569,0.00016829,2]
[368638127,1751257846712,-4.05617132,0.00016829,2]
[368638133,1751257846758,-552.06382868,0.00016829,2]
[368638135,1751257846767,-492.17406747,0.00016829,2]
[368638137,1751257846776,-490.0,0.00016829,2]
[368638139,1751257846784,-151.0,0.00016829,2]
[368638141,1751257846794,-1364.05,0.00016829,2]
[368638143,1751257846802,-1543.66,0.00016829,2]
[368638145,1751257846812,-451.37138433,0.00016829,2]
[368638764,1751257908734,219.32113384,0.00027397,120]
[368638776,1751258438530,-1000.0,0.0001524,2]
[368638779,1751258511192,285.34,0.00013699,2]
[368638781,1751258551280,-490.0,0.00016899,7]
[368638782,1751258564836,-417.66522635,0.00015145,2]
[368638783,1751258586978,-852.42,0.0001524,2]
[368638784,1751258587005,-1000.0,0.00015245,2]
[368638785,1751258587029,-296.57,0.0001528,2]
[368638786,1751258587056,-531.0,0.00015588,2]
[368638787,1751258587083,-155.06,0.00015824,2]
[368638788,1751258587112,-155.06,0.00015829,2]
[368638789,1751258587138,-155.06,0.00015833,2]
[368638790,1751258587164,-155.06,0.00015837,2]
[368638791,1751258587190,-155.06,0.00015842,2]
[368638792,1751258587215,-155.06,0.00015846,2]
[368638793,1751258587241,-155.06,0.00015851,2]
[368638794,1751258587267,-155.06,0.00015855,2]
[368638795,1751258587293,-155.06,0.00015859,2]
[368638796,1751258587319,-197.1,0.00015862,2]
[368638797,1751258587344,-199.67,0.00015862,2]
[368638798,1751258587372,-155.06,0.00015864,2]
[368638799,1751258587399,-155.06,0.00015868,2]
[368638800,1751258587425,-155.06,0.00015873,2]
[368638801,1751258587452,-155.06,0.00015877,2]
[368638802,1751258587479,-155.06,0.00015881,2]
[368638803,1751258587506,-155.06,0.00015886,2]
[368638804,1751258587533,-155.06,0.0001589,2]
[368638805,1751258587559,-155.06,0.00015894,2]
[368638806,1751258587586,-155.06,0.00015899,2]
[368638807,1751258587612,-300.0,0.00015903,2]
[368638808,1751258587637,-211.0,0.00015903,2]
[368638809,1751258587664,-155.06,0.00015903,2]
[368638810,1751258587689,-200.0,0.00015916,2]
[368638811,1751258587715,-200.0,0.00015938,2]
[368638812,1751258587740,-1200.0,0.00015938,2]
[368638813,1751258587767,-168.0,0.00016385,2]
[368638814,1751258587792,-676.71943611,0.00016517,2]
[368638815,1751258587818,-1605.96,0.00016529,2]
[368638816,1751258587844,-3211.8,0.00016599,2]
[368638817,1751258587871,-2573.44435,0.0001666,2]
[368638818,1751258587897,-186.78694619,0.00016699,2]
[368638819,1751258587923,-3211.8,0.000167,2]
[368638820,1751258587949,-400.92254883,0.00016721,2]
[368638821,1751258587974,-1000.0,0.00016721,2]
[368638822,1751258588000,-2340.66671887,0.00016721,2]
[368638824,1751258845469,930.35213351,0.000166,2]
[368638825,1751258988994,69.64786649,0.00016499,2]
[368638888,1751259038958,-389.23213351,0.00016499,2]
[368638890,1751259038968,-458.82,0.00016519,2]
[368638892,1751259038977,-458.82,0.0001652,2]
[368638894,1751259038986,-458.82,0.00016529,2]
[368638895,1751259038995,-458.82,0.00016595,2]
[368638898,1751259039004,-458.82,0.00016599,2]
[368638900,1751259039014,-458.82,0.000166,2]
[368638902,1751259039023,-460.98527086,0.0001667,2]
[368638904,1751259039032,-1200.0,0.00016698,2]
[368638905,1751259039041,-300.0,0.00016698,2]
[368638907,1751259039051,-168.10825158,0.00016698,2]
[368638909,1751259039060,-1000.0,0.00016699,2]
[368638911,1751259039069,-2500.0,0.00016699,2]
[368638913,1751259039078,-83.10956122,0.00016699,2]
[368638915,1751259039089,-277.7207327,0.00016699,2]
[368638917,1751259039100,-105.15824106,0.00016709,2]
[368638920,1751259039111,-1564.02325372,0.00016709,2]
[368638922,1751259039123,-561.4087737,0.00016709,2]
[368638924,1751259039134,-252.61111578,0.00016709,2]
[368638926,1751259039145,-16.79861574,0.00016709,2]
[368638928,1751259039155,-359.11699119,0.0001672,2]
[368638931,1751259039175,-4640.88300881,0.0001672,2]
[368638933,1751259039184,-1779.69924774,0.00016721,2]
[368638937,1751259039205,-763.65714972,0.00016721,2]
[368638939,1751259039222,-6258.44884244,0.00016721,2]
[368638973,1751259039547,-490.0,0.00016829,7]
[368639071,1751259040423,-488.78237986,0.00016721,2]
[368639084,1751259040534,-13733.35196137,0.00016721,2]
[368639086,1751259040543,-537.14789712,0.00016728,2]
[368639088,1751259040553,-250.0,0.00016728,2]
[368639090,1751259040562,-402.3340355,0.00016728,2]
[368639092,1751259040573,-210.80078399,0.00016729,2]
[368639094,1751259040582,-42010.48352516,0.00016729,2]
[368639473,1751259044277,-3447.62110239,0.00016729,2]
[368639477,1751259044314,-629.23687052,0.00016729,2]
[368639508,1751259044600,-1066.09738353,0.00016729,2]
[368639528,1751259044779,-851.36053,0.00016729,2]
[368639673,1751259046262,-484.9,0.00016729,2]
[368639734,1751259046830,-16650.4199884,0.00016729,2]
[368639736,1751259046839,-500.0,0.00016729,2]
[368639738,1751259046849,-168.10825151,0.0001674,2]
[368639741,1751259046858,-21060.49172791,0.0001674,2]
[368639743,1751259046868,-360.83029387,0.00016741,2]
[368639745,1751259046877,-168.0,0.00016752,2]
[368639746,1751259046886,-168.10825151,0.00016781,2]
[368639749,1751259046896,-360.83029387,0.00016782,2]
[368639750,1751259046905,-2253.49,0.00016788,2]
[368639752,1751259046914,-2253.49,0.00016788,2]
[368639755,1751259046923,-151.71,0.00016789,2]
[368639756,1751259046933,-825.76,0.00016797,2]
[368639758,1751259046942,-2190.41,0.00016797,2]
[368639760,1751259046951,-2073.62,0.00016797,2]
[368639762,1751259046960,-559.16,0.00016797,2]
[368639764,1751259046970,-490.0,0.00016797,2]
[368639766,1751259046979,-490.0,0.00016797,2]
[368639768,1751259046988,-534.98,0.00016797,2]
[368639770,1751259046997,-2390.3,0.00016797,2]
[368639772,1751259047007,-2650.74,0.00016797,2]
[368639774,1751259047016,-490.0,0.00016797,2]
[368639776,1751259047025,-796.65,0.00016797,2]
[368639778,1751259047034,-1845.5,0.00016797,2]
[368639780,1751259047043,-730.68,0.00016797,2]
[368639782,1751259047052,-1696.95,0.00016797,2]
[368639784,1751259047061,-490.0,0.00016797,2]
[368639786,1751259047070,-1106.59,0.00016797,2]
[368639788,1751259047079,-1819.3,0.00016797,2]
[368639790,1751259047088,-490.0,0.00016797,2]
[368639792,1751259047098,-490.0,0.00016797,2]
[368639794,1751259047108,-490.0,0.00016797,2]
[368639796,1751259047117,-490.0,0.00016797,2]
[368639798,1751259047127,-1307.22,0.00016797,2]
[368639800,1751259047137,-490.0,0.00016797,2]
[368639803,1751259047147,-1162.02,0.00016797,2]
[368639805,1751259047156,-490.0,0.00016797,2]
[368639807,1751259047165,-2605.89,0.00016797,2]
[368639809,1751259047174,-490.0,0.00016797,2]
[368639811,1751259047183,-490.0,0.00016797,2]
[368639813,1751259047193,-490.0,0.00016798,2]
[368639815,1751259047202,-524.52667882,0.00016798,2]
[368639816,1751259047211,-490.0,0.00016798,2]
[368639818,1751259047221,-490.0,0.00016798,2]
[368639821,1751259047230,-490.0,0.00016798,2]
[368639823,1751259047239,-490.0,0.00016798,2]
[368639824,1751259047248,-490.0,0.00016798,2]
[368639827,1751259047257,-490.0,0.00016798,2]
[368639829,1751259047268,-927.24,0.00016798,2]
[368639831,1751259047278,-1004.99452687,0.00016798,2]
[368639833,1751259047289,-1243.99,0.00016798,2]
[368639835,1751259047299,-490.0,0.00016798,2]
[368639837,1751259047308,-1407.59,0.00016798,2]
[368639839,1751259047317,-490.0,0.00016798,2]
[368639841,1751259047326,-490.0,0.00016798,2]
[368639843,1751259047336,-490.0,0.00016798,2]
[368639845,1751259047345,-847.11,0.00016798,2]
[368639847,1751259047358,-490.0,0.00016798,2]
[368639849,1751259047367,-490.0,0.00016798,2]
[368639851,1751259047376,-490.0,0.00016798,2]
[368639853,1751259047387,-1577.82,0.00016798,2]
[368639855,1751259047397,-490.0,0.00016798,2]
[368639857,1751259047406,-490.0,0.00016798,2]
[368639859,1751259047415,-490.0,0.00016798,2]
[368639861,1751259047424,-490.0,0.00016798,2]
[368639863,1751259047434,-867.23,0.00016798,2]
[368639865,1751259047443,-494.4,0.00016798,2]
[368639867,1751259047453,-672.68,0.00016798,2]
[368639869,1751259047463,-532.95,0.00016798,2]
[368639871,1751259047472,-490.0,0.00016798,2]
[368639873,1751259047482,-1041.64,0.00016798,2]
[368639875,1751259047491,-747.92,0.00016798,2]
[368639877,1751259047501,-490.0,0.00016798,2]
[368639879,1751259047510,-629.83,0.00016798,2]
[368639881,1751259047519,-490.0,0.00016798,2]
[368639883,1751259047529,-683.21,0.00016798,2]
[368639886,1751259047548,-493.98805957,0.00016798,2]
[368639888,1751259047558,-490.0,0.00016798,2]
[368639890,1751259047568,-490.0,0.00016798,2]
[368639892,1751259047578,-490.0,0.00016798,2]
[368639894,1751259047588,-490.0,0.00016798,2]
[368639896,1751259047598,-490.43,0.00016798,2]
[368639899,1751259047607,-494.6,0.00016798,2]
[368639901,1751259047617,-1042.41,0.00016798,2]
[368639903,1751259047626,-490.0,0.00016798,2]
[368639905,1751259047635,-642.47,0.00016798,2]
[368639907,1751259047645,-979.36,0.00016798,2]
[368639909,1751259047654,-490.0,0.00016798,2]
[368639911,1751259047665,-490.0,0.00016798,2]
[368639913,1751259047674,-490.0,0.00016798,2]
[368639915,1751259047683,-490.0,0.00016798,2]
[368639917,1751259047692,-490.0,0.00016798,2]
[368639919,1751259047702,-490.0,0.00016798,2]
[368639921,1751259047712,-865.85,0.00016798,2]
[368639923,1751259047721,-490.0,0.00016798,2]
[368639925,1751259047731,-519.61,0.00016798,2]
[368639927,1751259047741,-649.95,0.00016798,2]
[368639929,1751259047750,-490.0,0.00016798,2]
[368639931,1751259047760,-490.0,0.00016798,2]
[368639933,1751259047769,-490.0,0.00016798,2]
[368639935,1751259047779,-1157.67,0.00016798,2]
[368639937,1751259047789,-496.82,0.00016798,2]
[368639939,1751259047798,-490.0,0.00016798,2]
[368639941,1751259047808,-490.0,0.00016798,2]
[368639943,1751259047819,-669.37,0.00016798,2]
[368639945,1751259047829,-490.0,0.00016798,2]
[368639947,1751259047839,-490.0,0.00016798,2]
[368639949,1751259047848,-1828.01,0.00016798,2]
[368639951,1751259047859,-490.0,0.00016798,2]
[368639953,1751259047869,-490.0,0.00016798,2]
[368639955,1751259047878,-610.07,0.00016798,2]
[368639957,1751259047888,-743.68,0.00016798,2]
[368639959,1751259047897,-1286.44,0.00016798,2]
[368639961,1751259047907,-2692.92,0.00016798,2]
[368639964,1751259047917,-2664.44,0.00016798,2]
[368639966,1751259047928,-490.0,0.00016798,2]
[368639968,1751259047939,-498.41,0.00016798,2]
[368639970,1751259047950,-490.0,0.00016798,2]
[368639972,1751259047959,-868.61,0.00016798,2]
[368639974,1751259047968,-578.56,0.00016798,2]
[368639976,1751259047978,-490.0,0.00016798,2]
[368639978,1751259047987,-490.0,0.00016798,2]
[368639980,1751259047997,-2567.27,0.00016798,2]
[368639982,1751259048006,-2286.23,0.00016798,2]
[368639984,1751259048015,-490.0,0.00016798,2]
[368639986,1751259048025,-490.0,0.00016798,2]